[Event "Almaty Open 2019"]
[Site "Almaty"]
[Date "2019.10.12"]
[Round "7.13"]
[White "Bekturov, Tamerlan"]
[Black "Kembayev, Bakhytzhan"]
[Result "1-0"]
[ECO "E04"]
[WhiteElo "2226"]
[BlackElo "2119"]
[Annotator "NA"]
[PlyCount "109"]
[EventDate "2019.10.07"]
[EventType "swiss"]
[EventCountry "KAZ"]
[SourceTitle "playchess.com"]
[Source "ChessBase"]
[SourceQuality "1"]
[TimeControl "5400+30"]

1. d4 {[%emt 0:00:00]} Nf6 {[%emt 0:00:00]} 2. c4 {[%emt 0:00:00]} e6 {[%emt 0:00:00]} 3. g3 {[%emt 0:00:00]} d5 {[%emt 0:00:00]} 4. Bg2 {[%emt 0:00:00]} dxc4 {[%emt 0:00:00]} 5. Nf3 {[%emt 0:00:39]} Nc6 {[%emt 0:02:21]} 6. Qa4 {[%emt 0:03:15]} Bb4+ {[%emt 0:00:20]} 7. Bd2 {[%emt 0:00:09]} Nd5 {[%emt 0:00:06]} 8. Bxb4 {[%emt 0:03:18]} Ndxb4 {[%emt 0:00:07]} 9. O-O {[%emt 0:07:29]} Rb8 {[%emt 0:09:32]} 10. Na3 {[%emt 0:06:29]} O-O {[%emt 0:09:06]} 11. Qb5 {[%emt 0:00:28]} b6 {[%emt 0:11:08]} 12. Qxc4 {[%emt 0:00:30]} Ba6 {[%emt 0:04:32]} 13. Nb5 {[%emt 0:00:08]} Qd5 {[%emt 0:01:19]} 14. Qxd5 {[%emt 0:00:37]} Nxd5 {[%emt 0:00:33]} 15. a4 {[%emt 0:03:53]} Rbd8 {[%emt 0:11:45]} 16. Rfc1 {[%emt 0:08:14]} Na5 {[%emt 0:03:38]} 17. e4 {[%emt 0:18:18]} Nf6 {[%emt 0:08:35]} 18. Rxc7 {[%emt 0:05:03]} Nxe4 {[%emt 0:01:27]} 19. Nxa7 {[%emt 0:03:03]} Nf6 {[%emt 0:17:04]} 20. Rc2 {[%emt 0:12:48]} Bb7 {[%emt 0:04:09]} 21. Rd1 {[%emt 0:08:18]} Be4 {[%emt 0:00:29]} 22. Re2 {[%emt 0:00:18]} Nb3 {[%emt 0:03:59]} 23. Nb5 {[%emt 0:01:01]} Ra8 {[%emt 0:02:03]} 24. Nc3 {[%emt 0:06:36]} Bc6 {[%emt 0:00:05]} 25. Ne5 {[%emt 0:02:18]} Bxg2 {[%emt 0:00:12]} 26. Kxg2 {[%emt 0:00:06]} Rfd8 {[%emt 0:03:58]} 27. Nf3 {[%emt 0:00:07]} h6 {[%emt 0:01:15]} 28. Re3 {[%emt 0:02:52]} Na5 {[%emt 0:01:13]} 29. Ne5 {[%emt 0:01:42]} Rac8 {[%emt 0:00:09]} 30. Red3 {[%emt 0:01:37]} Nd5 {[%emt 0:01:08]} 31. Nxd5 {[%emt 0:00:25]} Rxd5 {[%emt 0:00:09]} 32. b4 {[%emt 0:01:22]} Nb7 {[%emt 0:00:25]} 33. Rb3 {[%emt 0:01:20]} f6 {[%emt 0:00:24]} 34. Ng6 {[%emt 0:01:13]} Kf7 {[%emt 0:00:46]} 35. Nf4 {[%emt 0:00:05]} Rd6 {[%emt 0:00:18]} 36. d5 {[%emt 0:00:59]} exd5 {[%emt 0:02:27]} 37. Rxd5 {[%emt 0:00:19]} Rxd5 {[%emt 0:02:23]} 38. Nxd5 {[%emt 0:00:06]} Rc6 {[%emt 0:00:08]} 39. Re3 {[%emt 0:00:11]} Nd8 {[%emt 0:00:31]} 40. Re7+ {[%emt 0:00:12]} Kf8 {[%emt 0:00:33]} 41. Rd7 {[%emt 0:00:26]} Nf7 {[%emt 0:00:45]} 42. b5 {[%emt 0:00:55]} Rc2 {[%emt 0:00:23]} 43. Nxb6 {[%emt 0:00:24]} Ne5 {[%emt 0:00:02]} 44. Rd4 {[%emt 0:00:30]} Ke7 {[%emt 0:00:13]} 45. Nd5+ {[%emt 0:00:31]} Ke6 {[%emt 0:00:04]} 46. Ne3 {[%emt 0:00:29]} Rb2 {[%emt 0:00:24]} 47. g4 {[%emt 0:00:40]} g6 {[%emt 0:00:11]} 48. h3 {[%emt 0:00:45]} h5 {[%emt 0:00:27]} 49. gxh5 {[%emt 0:00:33]} gxh5 {[%emt 0:00:02]} 50. Nd5 {[%emt 0:00:15]} h4 {[%emt 0:00:47]} 51. Ne3 {[%emt 0:02:43]} f5 {[%emt 0:00:32]} 52. Nd1 {[%emt 0:00:37]} Ra2 {[%emt 0:00:24]} 53. b6 {[%emt 0:00:36]} Nc6 {[%emt 0:00:31]} 54. Rc4 {[%emt 0:00:31]} Kd5 {[%emt 0:00:14]} 55. Ne3+ {[%emt 0:00:07]} 1-0

[Event "Almaty Open 2019"]
[Site "Almaty"]
[Date "2019.10.12"]
[Round "7.14"]
[White "Balabayeva, Xeniya"]
[Black "Kairbekova, Amina"]
[Result "1-0"]
[ECO "C03"]
[WhiteElo "1986"]
[BlackElo "2096"]
[Annotator "NA"]
[PlyCount "69"]
[EventDate "2019.10.07"]
[EventType "swiss"]
[EventCountry "KAZ"]
[SourceTitle "playchess.com"]
[Source "ChessBase"]
[SourceQuality "1"]
[TimeControl "5400+30"]

1. e4 {[%emt 0:00:00]} e6 {[%emt 0:00:00]} 2. d4 {[%emt 0:00:00]} d5 {[%emt 0:00:00]} 3. Nd2 {[%emt 0:00:00]} Be7 {[%emt 0:00:00]} 4. e5 {[%emt 0:00:00]} c5 {[%emt 0:00:00]} 5. c3 {[%emt 0:00:01]} Nc6 {[%emt 0:00:00]} 6. Bd3 {[%emt 0:00:11]} cxd4 {[%emt 0:00:27]} 7. cxd4 {[%emt 0:00:06]} Nb4 {[%emt 0:00:16]} 8. Bb1 {[%emt 0:00:48]} Qb6 {[%emt 0:00:04]} 9. Ne2 {[%emt 0:01:08]} Bd7 {[%emt 0:04:19]} 10. a3 {[%emt 0:12:40]} Qa6 {[%emt 0:07:51]} 11. Nb3 {[%emt 0:08:37]} Ba4 {[%emt 0:05:29]} 12. Nc3 {[%emt 0:10:26]} Bxb3 {[%emt 0:00:17]} 13. Qxb3 {[%emt 0:00:03]} Rc8 {[%emt 0:02:40]} 14. Be3 {[%emt 0:07:50]} Kf8 {[%emt 0:16:57]} 15. Qd1 {[%emt 0:13:32]} h5 {[%emt 0:26:19]} 16. f3 {[%emt 0:14:02]} h4 {[%emt 0:06:22]} 17. Kf2 {[%emt 0:02:44]} Nh6 {[%emt 0:00:28]} 18. Qd2 {[%emt 0:00:53]} Nc6 {[%emt 0:01:46]} 19. Rc1 {[%emt 0:11:29]} f6 {[%emt 0:02:27]} 20. b4 {[%emt 0:02:37]} Nxb4 {[%emt 0:12:07]} 21. axb4 {[%emt 0:00:30]} Qxa1 {[%emt 0:00:02]} 22. Ba2 {[%emt 0:00:22]} Qxc1 {[%emt 0:00:06]} 23. Qxc1 {[%emt 0:00:06]} Bxb4 {[%emt 0:00:02]} 24. Bd2 {[%emt 0:06:44]} fxe5 {[%emt 0:00:06]} 25. Qb2 {[%emt 0:00:34]} a5 {[%emt 0:00:45]} 26. Ne2 {[%emt 0:00:40]} Bxd2 {[%emt 0:03:04]} 27. Qxd2 {[%emt 0:00:02]} b6 {[%emt 0:00:20]} 28. dxe5 {[%emt 0:00:26]} Nf5 {[%emt 0:00:13]} 29. Bb1 {[%emt 0:01:16]} Ne7 {[%emt 0:00:45]} 30. Nd4 {[%emt 0:01:44]} Rh6 {[%emt 0:00:10]} 31. Qb2 {[%emt 0:00:49]} a4 {[%emt 0:06:32]} 32. Qxb6 {[%emt 0:00:31]} a3 {[%emt 0:00:11]} 33. Nxe6+ {[%emt 0:02:52]} Kg8 {[%emt 0:00:18]} 34. Qd6 {[%emt 0:00:15]} a2 {[%emt 0:04:16]} 35. Qxe7 {[%emt 0:00:25]} 1-0

[Event "Almaty Open 2019"]
[Site "Almaty"]
[Date "2019.10.12"]
[Round "7.15"]
[White "Malygin, Vladislav"]
[Black "Bizhigitov, Zhangir"]
[Result "1/2-1/2"]
[ECO "C04"]
[WhiteElo "1941"]
[BlackElo "2018"]
[Annotator "NA"]
[PlyCount "71"]
[EventDate "2019.10.07"]
[EventType "swiss"]
[EventCountry "KAZ"]
[SourceTitle "playchess.com"]
[Source "ChessBase"]
[SourceQuality "1"]
[TimeControl "5400+30"]

1. e4 {[%emt 0:00:00]} e6 {[%emt 0:00:00]} 2. d4 {[%emt 0:00:00]} d5 {[%emt 0:00:00]} 3. Nd2 {[%emt 0:00:00]} Nc6 {[%emt 0:00:26]} 4. Ngf3 {[%emt 0:00:17]} Nf6 {[%emt 0:00:28]} 5. e5 {[%emt 0:00:39]} Nd7 {[%emt 0:00:17]} 6. Nb3 {[%emt 0:03:30]} a5 {[%emt 0:03:03]} 7. Bg5 {[%emt 0:01:59]} Be7 {[%emt 0:01:16]} 8. Bxe7 {[%emt 0:00:16]} Qxe7 {[%emt 0:00:05]} 9. c3 {[%emt 0:00:14]} O-O {[%emt 0:05:24]} 10. Bd3 {[%emt 0:00:19]} a4 {[%emt 0:02:59]} 11. Nbd2 {[%emt 0:00:30]} f6 {[%emt 0:04:34]} 12. O-O {[%emt 0:09:17]} fxe5 {[%emt 0:12:06]} 13. Nxe5 {[%emt 0:00:12]} Ndxe5 {[%emt 0:01:39]} 14. dxe5 {[%emt 0:00:09]} Nxe5 {[%emt 0:07:41]} 15. Bxh7+ {[%emt 0:00:27]} Kxh7 {[%emt 0:00:04]} 16. Qh5+ {[%emt 0:00:07]} Kg8 {[%emt 0:00:03]} 17. Qxe5 {[%emt 0:00:07]} Rf5 {[%emt 0:00:41]} 18. Qe3 {[%emt 0:06:56]} Bd7 {[%emt 0:02:30]} 19. f4 {[%emt 0:03:35]} Raf8 {[%emt 0:11:29]} 20. Rae1 {[%emt 0:01:42]} Qf7 {[%emt 0:03:50]} 21. g3 {[%emt 0:02:42]} Bb5 {[%emt 0:01:47]} 22. c4 {[%emt 0:01:52]} dxc4 {[%emt 0:01:44]} 23. Qc3 {[%emt 0:03:24]} Qe7 {[%emt 0:04:38]} 24. Nf3 {[%emt 0:05:50]} Rd8 {[%emt 0:06:36]} 25. Re5 {[%emt 0:13:57]} Rxe5 {[%emt 0:03:15]} 26. Nxe5 {[%emt 0:02:05]} Qc5+ {[%emt 0:00:37]} 27. Kg2 {[%emt 0:00:27]} Qd5+ {[%emt 0:05:15]} 28. Kh3 {[%emt 0:00:48]} Qe4 {[%emt 0:01:53]} 29. Qb4 {[%emt 0:02:15]} Qe2 {[%emt 0:02:27]} 30. Rf3 {[%emt 0:21:28]} Bc6 {[%emt 0:09:17]} 31. Qe7 {[%emt 0:00:15]} Rf8 {[%emt 0:01:26]} 32. Qxe6+ {[%emt 0:00:09]} Kh7 {[%emt 0:00:05]} 33. Qg6+ {[%emt 0:00:52]} Kh8 {[%emt 0:00:28]} 34. Qe6 {[%emt 0:02:06]} Re8 {[%emt 0:03:35]} 35. Ng6+ {[%emt 0:00:10]} Kh7 {[%emt 0:00:08]} 36. Nf8+ {[%emt 0:00:04]} 1/2-1/2

[Event "Almaty Open 2019"]
[Site "Almaty"]
[Date "2019.10.12"]
[Round "7.16"]
[White "Nukin, Tolegen"]
[Black "Baimurzin, Aitkazy"]
[Result "1-0"]
[ECO "B06"]
[WhiteElo "2104"]
[BlackElo "2036"]
[Annotator "NA"]
[PlyCount "125"]
[EventDate "2019.10.07"]
[EventType "swiss"]
[EventCountry "KAZ"]
[SourceTitle "playchess.com"]
[Source "ChessBase"]
[SourceQuality "1"]
[TimeControl "5400+30"]

1. e4 {[%emt 0:00:00]} g6 {[%emt 0:00:55]} 2. d4 {[%emt 0:00:00]} Bg7 {[%emt 0:00:09]} 3. f3 {[%emt 0:00:33]} d6 {[%emt 0:05:02]} 4. Be3 {[%emt 0:03:19]} Nc6 {[%emt 0:01:48]} 5. c4 {[%emt 0:01:17]} e5 {[%emt 0:01:04]} 6. d5 {[%emt 0:00:27]} Nce7 {[%emt 0:00:24]} 7. Nc3 {[%emt 0:01:01]} f5 {[%emt 0:01:02]} 8. Bd3 {[%emt 0:03:07]} Nf6 {[%emt 0:00:44]} 9. Nge2 {[%emt 0:00:32]} O-O {[%emt 0:02:35]} 10. Qd2 {[%emt 0:00:22]} f4 {[%emt 0:09:50]} 11. Bf2 {[%emt 0:00:05]} g5 {[%emt 0:00:33]} 12. O-O-O {[%emt 0:06:44]} g4 {[%emt 0:05:23]} 13. Kb1 {[%emt 0:00:27]} Bd7 {[%emt 0:02:12]} 14. c5 {[%emt 0:03:24]} Rf7 {[%emt 0:08:19]} 15. Bc4 {[%emt 0:00:38]} a6 {[%emt 0:02:35]} 16. c6 {[%emt 0:02:17]} Bc8 {[%emt 0:00:13]} 17. cxb7 {[%emt 0:00:35]} Bxb7 {[%emt 0:00:03]} 18. Nc1 {[%emt 0:01:22]} Ng6 {[%emt 0:11:35]} 19. Nb3 {[%emt 0:00:39]} Bf8 {[%emt 0:01:21]} 20. Na5 {[%emt 0:00:44]} Bc8 {[%emt 0:01:55]} 21. b4 {[%emt 0:03:12]} Qd7 {[%emt 0:02:59]} 22. h3 {[%emt 0:10:53]} gxf3 {[%emt 0:06:31]} 23. gxf3 {[%emt 0:00:02]} Nh5 {[%emt 0:00:45]} 24. Nc6 {[%emt 0:01:42]} Ng3 {[%emt 0:01:57]} 25. Rh2 {[%emt 0:00:06]} Nh4 {[%emt 0:01:32]} 26. Qd3 {[%emt 0:00:57]} Rg7 {[%emt 0:02:01]} 27. Ka1 {[%emt 0:03:40]} Qe8 {[%emt 0:00:45]} 28. Nb1 {[%emt 0:01:03]} Kh8 {[%emt 0:02:19]} 29. Bb3 {[%emt 0:01:30]} Bd7 {[%emt 0:01:44]} 30. Ba4 {[%emt 0:03:30]} Be7 {[%emt 0:01:30]} 31. Nd2 {[%emt 0:00:37]} Bf6 {[%emt 0:00:18]} 32. a3 {[%emt 0:00:49]} Qh5 {[%emt 0:05:29]} 33. Ka2 {[%emt 0:03:26]} Rag8 {[%emt 0:04:57]} 34. Rc1 {[%emt 0:01:10]} Ra8 {[%emt 0:08:01]} 35. Bd1 {[%emt 0:01:24]} Qf7 {[%emt 0:00:42]} 36. a4 {[%emt 0:03:32]} Nh5 {[%emt 0:00:27]} 37. Na7 {[%emt 0:01:22]} c5 {[%emt 0:03:12]} 38. bxc5 {[%emt 0:07:45]} Rxa7 {[%emt 0:00:04]} 39. c6 {[%emt 0:00:02]} Rc7 {[%emt 0:00:19]} 40. Nc4 {[%emt 0:00:34]} Bxc6 {[%emt 0:02:46]} 41. dxc6 {[%emt 0:00:54]} Rxc6 {[%emt 0:00:30]} 42. Bb3 {[%emt 0:00:01]} Qc7 {[%emt 0:00:24]} 43. Bxh4 {[%emt 0:02:56]} Bxh4 {[%emt 0:00:02]} 44. Rhc2 {[%emt 0:00:02]} Rd7 {[%emt 0:01:42]} 45. Ne3 {[%emt 0:08:31]} Rxc2+ {[%emt 0:00:18]} 46. Rxc2 {[%emt 0:00:07]} Qb7 {[%emt 0:00:36]} 47. Nf5 {[%emt 0:01:19]} Bd8 {[%emt 0:02:54]} 48. Nxd6 {[%emt 0:16:06]} Nf6 {[%emt 0:00:14]} 49. Nf7+ {[%emt 0:01:42]} Kg7 {[%emt 0:00:24]} 50. Nxd8 {[%emt 0:00:08]} Qb6 {[%emt 0:00:43]} 51. Rg2+ {[%emt 0:04:22]} Kf8 {[%emt 0:00:01]} 52. Qc3 {[%emt 0:03:16]} Rxd8 {[%emt 0:00:55]} 53. Qxe5 {[%emt 0:00:14]} Rd3 {[%emt 0:00:13]} 54. Rb2 {[%emt 0:00:34]} Qd4 {[%emt 0:00:54]} 55. Qxf4 {[%emt 0:00:45]} Ke7 {[%emt 0:00:42]} 56. Qc7+ {[%emt 0:00:04]} Nd7 {[%emt 0:00:13]} 57. Qf4 {[%emt 0:00:18]} Nc5 {[%emt 0:00:54]} 58. Qf7+ {[%emt 0:00:07]} Kd6 {[%emt 0:00:21]} 59. Qf8+ {[%emt 0:00:48]} Kc7 {[%emt 0:00:11]} 60. Qe7+ {[%emt 0:00:14]} Nd7 {[%emt 0:00:25]} 61. Rc2+ {[%emt 0:00:23]} Rc3 {[%emt 0:00:18]} 62. Qf7 {[%emt 0:01:10]} Kb6 {[%emt 0:00:48]} 63. Rxc3 {[%emt 0:00:22]} 1-0

[Event "Almaty Open 2019"]
[Site "Almaty"]
[Date "2019.10.12"]
[Round "7.17"]
[White "Nurgaliyev, Sauat"]
[Black "Tologontegin, Semetey"]
[Result "0-1"]
[ECO "B32"]
[WhiteElo "1995"]
[BlackElo "2384"]
[Annotator "ChessBase"]
[PlyCount "50"]
[EventDate "2019.10.07"]
[EventType "swiss"]
[EventCountry "KAZ"]
[SourceTitle "playchess.com"]
[Source "ChessBase"]
[SourceQuality "1"]
[TimeControl "5400+30"]

1. e4 {[%emt 0:00:00]} c5 {[%emt 0:16:19]} 2. Nf3 {[%emt 0:04:10]} Nc6 {[%emt 0:00:13]} 3. d4 {[%emt 0:00:13]} cxd4 {[%emt 0:00:02]} 4. Nxd4 {[%emt 0:00:09]} Qb6 {[%emt 0:00:26]} 5. Nb3 {[%emt 0:00:54]} Nf6 {[%emt 0:00:08]} 6. Nc3 {[%emt 0:00:56]} e6 {[%emt 0:00:05]} 7. Qe2 {[%emt 0:00:50]} Bb4 {[%emt 0:05:15]} 8. Bd2 {[%emt 0:00:49]} O-O {[%emt 0:00:07]} 9. O-O-O {[%emt 0:00:56]} a5 {[%emt 0:03:28]} 10. Kb1 {[%emt 0:02:24]} a4 {[%emt 0:00:34]} 11. Nc1 {[%emt 0:03:02]} d5 {[%emt 0:00:54]} 12. f3 {[%emt 0:07:54]} a3 {[%emt 0:05:31]} 13. b3 {[%emt 0:03:18]} d4 {[%emt 0:08:44]} 14. Qb5 {[%emt 0:06:32]} Qc7 {[%emt 0:01:23]} 15. N3e2 {[%emt 0:09:00]} Bxd2 {[%emt 0:05:29]} 16. Rxd2 {[%emt 0:00:45]} e5 {[%emt 0:00:08]} 17. Ng3 {[%emt 0:01:36]} Be6 {[%emt 0:00:44]} 18. h4 {[%emt 0:01:58]} Rfc8 {[%emt 0:03:07]} 19. Qe2 {[%emt 0:05:50]} Nb4 {[%emt 0:00:20]} 20. Qd1 {[%emt 0:03:34]} Qc3 {[%emt 0:01:35]} 21. Nd3 {[%emt 0:02:05]} Nxd3 {[%emt 0:05:55]} 22. cxd3 {[%emt 0:01:03]} Bxb3 {[%emt 0:00:11]} 23. axb3 {[%emt 0:00:41]} a2+ {[%emt 0:00:05]} 24. Rxa2 {[%emt 0:01:09]} Rxa2 {[%emt 0:00:06]} 25. Kxa2 {[%emt 0:01:10]} Ra8+ {[%emt 0:00:04]} 0-1

[Event "Almaty Open 2019"]
[Site "Almaty"]
[Date "2019.10.12"]
[Round "7.18"]
[White "Zhakshylykov, Erzhan"]
[Black "Igen, Amir"]
[Result "1/2-1/2"]
[ECO "B62"]
[WhiteElo "1999"]
[BlackElo "1934"]
[Annotator "NA"]
[PlyCount "73"]
[EventDate "2019.10.07"]
[EventType "swiss"]
[EventCountry "KAZ"]
[SourceTitle "playchess.com"]
[Source "ChessBase"]
[SourceQuality "1"]
[TimeControl "5400+30"]

1. e4 {[%emt 0:00:00]} c5 {[%emt 0:00:00]} 2. Nf3 {[%emt 0:00:00]} d6 {[%emt 0:00:00]} 3. d4 {[%emt 0:00:00]} cxd4 {[%emt 0:00:00]} 4. Nxd4 {[%emt 0:00:00]} Nf6 {[%emt 0:00:06]} 5. Nc3 {[%emt 0:00:03]} Nc6 {[%emt 0:00:24]} 6. Bg5 {[%emt 0:00:59]} e6 {[%emt 0:00:15]} 7. f4 Be7 {[%emt 0:01:16]} 8. Nb3 {[%emt 0:03:29]} h6 {[%emt 0:00:51]} 9. Bxf6 {[%emt 0:03:21]} Bxf6 {[%emt 0:00:08]} 10. Qd2 {[%emt 0:03:04]} g5 {[%emt 0:06:59]} 11. Nb5 {[%emt 0:15:00]} gxf4 {[%emt 0:09:46]} 12. Nxd6+ {[%emt 0:05:44]} Ke7 {[%emt 0:01:21]} 13. O-O-O {[%emt 0:02:52]} Be5 {[%emt 0:00:06]} 14. Nc4 {[%emt 0:06:44]} Qxd2+ {[%emt 0:00:24]} 15. Rxd2 {[%emt 0:01:18]} Bc7 {[%emt 0:00:05]} 16. a4 {[%emt 0:07:01]} b6 {[%emt 0:02:23]} 17. Kb1 {[%emt 0:03:18]} Bb7 {[%emt 0:01:53]} 18. Nc1 {[%emt 0:07:11]} Rhd8 {[%emt 0:03:24]} 19. Bd3 {[%emt 0:02:40]} Ne5 {[%emt 0:03:05]} 20. Nxe5 {[%emt 0:01:53]} Bxe5 {[%emt 0:02:15]} 21. b3 {[%emt 0:08:38]} Bd4 {[%emt 0:10:40]} 22. Ne2 {[%emt 0:10:59]} Be3 {[%emt 0:00:57]} 23. Rdd1 {[%emt 0:00:35]} f5 {[%emt 0:02:41]} 24. exf5 {[%emt 0:04:25]} Bxg2 {[%emt 0:00:38]} 25. Rhe1 {[%emt 0:00:51]} e5 {[%emt 0:00:30]} 26. Bc4 {[%emt 0:04:59]} Bf2 {[%emt 0:04:04]} 27. Nxf4 {[%emt 0:00:20]} Rxd1+ {[%emt 0:00:03]} 28. Rxd1 {[%emt 0:00:07]} exf4 {[%emt 0:00:16]} 29. Rd2 {[%emt 0:00:07]} f3 {[%emt 0:00:53]} 30. Rxf2 {[%emt 0:00:05]} Rd8 {[%emt 0:00:06]} 31. Kc1 {[%emt 0:07:56]} Kf6 {[%emt 0:00:37]} 32. Bd3 {[%emt 0:00:52]} Rd4 {[%emt 0:00:05]} 33. Kd2 {[%emt 0:00:29]} Rh4 {[%emt 0:00:38]} 34. Ke3 {[%emt 0:01:06]} Ke5 {[%emt 0:03:19]} 35. c4 Rxh2 {[%emt 0:03:14]} 36. b4 {[%emt 0:01:06]} Rh1 {[%emt 0:00:27]} 37. Rc2 1/2-1/2

[Event "Almaty Open 2019"]
[Site "Almaty"]
[Date "2019.10.13"]
[Round "8.1"]
[White "Fier, Alexandr"]
[Black "Harutyunian, Tigran K."]
[Result "1/2-1/2"]
[ECO "D38"]
[WhiteElo "2541"]
[BlackElo "2535"]
[Annotator "RC"]
[PlyCount "153"]
[EventDate "2019.10.07"]
[EventType "swiss"]
[EventCountry "KAZ"]
[SourceTitle "playchess.com"]
[Source "ChessBase"]
[SourceQuality "1"]
[TimeControl "5400+30"]

1. d4 {[%emt 0:00:00]} Nf6 {[%emt 0:00:57]} 2. c4 {[%emt 0:00:00]} e6 {[%emt 0:00:37]} 3. Nf3 {[%emt 0:00:00]} d5 {[%emt 0:00:11]} 4. Nc3 {[%emt 0:00:00]} Bb4 {[%emt 0:00:18]} 5. Qb3 {[%emt 0:00:00]} Be7 {[%emt 0:03:05]} 6. cxd5 {[%emt 0:01:29]} exd5 {[%emt 0:00:59]} 7. Bg5 {[%emt 0:00:05]} c6 {[%emt 0:02:39]} 8. e3 {[%emt 0:00:05]} O-O {[%emt 0:07:53]} 9. Bd3 {[%emt 0:01:15]} Nbd7 {[%emt 0:00:11]} 10. Qc2 {[%emt 0:00:06]} Re8 {[%emt 0:03:41]} 11. O-O {[%emt 0:00:11]} Nf8 {[%emt 0:00:41]} 12. h3 {[%emt 0:00:04]} Nh5 {[%emt 0:12:12]} 13. Bxe7 {[%emt 0:00:38]} Qxe7 {[%emt 0:00:08]} 14. Rab1 {[%emt 0:00:49]} a5 {[%emt 0:01:57]} 15. a3 {[%emt 0:00:57]} Nf6 {[%emt 0:02:40]} 16. b4 {[%emt 0:03:06]} Be6 {[%emt 0:06:38]} 17. Na4 {[%emt 0:05:37]} axb4 {[%emt 0:07:56]} 18. axb4 {[%emt 0:00:11]} Ne4 {[%emt 0:02:03]} 19. Nc5 {[%emt 0:04:00]} Nd6 {[%emt 0:03:58]} 20. Rfc1 {[%emt 0:05:29]} Rec8 {[%emt 0:02:23]} 21. Qb2 {[%emt 0:03:18]} b6 {[%emt 0:13:34]} 22. Nxe6 {[%emt 0:09:02]} Nxe6 {[%emt 0:00:07]} 23. b5 {[%emt 0:01:08]} c5 {[%emt 0:00:54]} 24. dxc5 {[%emt 0:00:06]} bxc5 {[%emt 0:00:56]} 25. Qe5 {[%emt 0:00:20]} c4 {[%emt 0:01:31]} 26. Be2 {[%emt 0:04:17]} Rc5 {[%emt 0:06:41]} 27. Nd4 {[%emt 0:00:04]} Re8 {[%emt 0:01:01]} 28. b6 {[%emt 0:02:21]} Nxd4 {[%emt 0:01:08]} 29. Qxd4 {[%emt 0:00:16]} Nb5 {[%emt 0:00:36]} 30. Qd2 {[%emt 0:06:07]} Rb8 {[%emt 0:03:52]} 31. Ra1 {[%emt 0:02:12]} g6 {[%emt 0:00:54]} 32. Ra6 {[%emt 0:02:53]} Qd6 {[%emt 0:02:02]} 33. Bf3 {[%emt 0:01:52]} Rxb6 {[%emt 0:00:46]} 34. Rxb6 {[%emt 0:00:34]} Qxb6 {[%emt 0:00:05]} 35. Bxd5 {[%emt 0:00:26]} Qd6 {[%emt 0:01:32]} 36. e4 {[%emt 0:00:05]} c3 {[%emt 0:00:21]} 37. Qd3 {[%emt 0:01:55]} Qe5 {[%emt 0:02:07]} 38. Qe3 {[%emt 0:08:44]} Qd4 {[%emt 0:02:09]} 39. Kf1 {[%emt 0:04:02]} Qb4 {[%emt 0:00:50]} 40. Qf4 {[%emt 0:05:48]} Rc7 {[%emt 0:01:14]} 41. Qf6 {[%emt 0:09:59]} Qc5 {[%emt 0:02:04]} 42. g4 {[%emt 0:07:50]} c2 {[%emt 0:00:44]} 43. g5 {[%emt 0:00:42]} Qd4 {[%emt 0:01:32]} 44. Ke2 {[%emt 0:04:22]} Nc3+ {[%emt 0:02:26]} 45. Kf3 {[%emt 0:00:02]} Qd1+ {[%emt 0:00:29]} 46. Kg2 {[%emt 0:00:03]} Nxd5 {[%emt 0:00:17]} 47. Qd8+ {[%emt 0:00:04]} Kg7 {[%emt 0:00:04]} 48. exd5 {[%emt 0:00:10]} Rd7 {[%emt 0:01:12]} 49. Rxd1 {[%emt 0:00:56]} Rxd8 {[%emt 0:00:16]} 50. Rc1 {[%emt 0:00:03]} Rc8 {[%emt 0:01:18]} 51. d6 {[%emt 0:00:11]} Rc5 {[%emt 0:00:05]} 52. d7 {[%emt 0:02:20]} Rxg5+ {[%emt 0:00:05]} 53. Kf3 {[%emt 0:00:05]} Rd5 {[%emt 0:00:05]} 54. Rxc2 {[%emt 0:00:04]} Rxd7 {[%emt 0:00:06]} 55. Rc5 {[%emt 0:01:34]} Rd3+ {[%emt 0:00:10]} 56. Kg2 {[%emt 0:00:03]} h6 {[%emt 0:01:26]} 57. h4 {[%emt 0:00:31]} Kf6 {[%emt 0:00:05]} 58. f3 {[%emt 0:00:18]} Ke6 {[%emt 0:00:21]} 59. Kg3 {[%emt 0:00:07]} Rd5 {[%emt 0:00:43]} 60. Rc7 {[%emt 0:00:04]} h5 {[%emt 0:00:15]} 61. Ra7 {[%emt 0:01:11]} f6 {[%emt 0:00:10]} 62. Rg7 {[%emt 0:01:38]} Kf5 {[%emt 0:00:21]} 63. Rf7 {[%emt 0:00:43]} Rd8 {[%emt 0:00:19]} 64. Ra7 {[%emt 0:00:24]} Rd5 {[%emt 0:00:44]} 65. Rf7 {[%emt 0:00:04]} Rd1 {[%emt 0:00:46]} 66. Ra7 {[%emt 0:00:31]} g5 {[%emt 0:00:04]} 67. Ra5+ {[%emt 0:01:08]} Kg6 {[%emt 0:00:07]} 68. hxg5 {[%emt 0:00:14]} Rg1+ {[%emt 0:00:05]} 69. Kf2 {[%emt 0:00:11]} Rxg5 {[%emt 0:00:07]} 70. Ra4 {[%emt 0:00:03]} Rb5 {[%emt 0:00:39]} 71. Kg3 {[%emt 0:00:04]} Kg5 {[%emt 0:00:05]} 72. Rc4 {[%emt 0:00:08]} Rb3 {[%emt 0:00:15]} 73. Rc5+ {[%emt 0:00:36]} f5 {[%emt 0:00:07]} 74. Rc4 {[%emt 0:00:01]} Rb1 {[%emt 0:00:35]} 75. f4+ {[%emt 0:00:29]} Kf6 {[%emt 0:00:08]} 76. Rc6+ {[%emt 0:00:03]} Kf7 {[%emt 0:00:20]} 77. Kh4 {[%emt 0:01:30]} 1/2-1/2

[Event "Almaty Open 2019"]
[Site "Almaty"]
[Date "2019.10.13"]
[Round "8.2"]
[White "Rakhimzhan, Alen"]
[Black "Igambergenov, Alibek"]
[Result "1-0"]
[ECO "E50"]
[WhiteElo "2303"]
[BlackElo "2402"]
[Annotator "NA"]
[PlyCount "61"]
[EventDate "2019.10.07"]
[EventType "swiss"]
[EventCountry "KAZ"]
[SourceTitle "playchess.com"]
[Source "ChessBase"]
[SourceQuality "1"]
[TimeControl "5400+30"]

1. d4 {[%emt 0:09:54]} Nf6 {[%emt 0:00:00]} 2. c4 {[%emt 0:00:32]} e6 {[%emt 0:00:01]} 3. Nc3 {[%emt 0:00:12]} Bb4 {[%emt 0:00:08]} 4. e3 {[%emt 0:00:10]} O-O {[%emt 0:02:13]} 5. Nf3 {[%emt 0:00:10]} b6 {[%emt 0:00:18]} 6. Bd2 {[%emt 0:00:14]} Bb7 {[%emt 0:00:51]} 7. Bd3 {[%emt 0:00:21]} d5 {[%emt 0:04:18]} 8. cxd5 {[%emt 0:00:11]} exd5 {[%emt 0:00:09]} 9. O-O {[%emt 0:00:12]} Nbd7 {[%emt 0:02:56]} 10. Rc1 {[%emt 0:00:04]} a6 {[%emt 0:07:27]} 11. Ne5 {[%emt 0:00:13]} Nxe5 {[%emt 0:13:49]} 12. dxe5 {[%emt 0:00:16]} Nd7 {[%emt 0:00:02]} 13. f4 {[%emt 0:34:38]} Nc5 {[%emt 0:02:10]} 14. Bxh7+ {[%emt 0:15:35]} Kxh7 {[%emt 0:00:24]} 15. Qh5+ {[%emt 0:00:08]} Kg8 {[%emt 0:00:05]} 16. Rf3 {[%emt 0:00:07]} f5 {[%emt 0:10:19]} 17. Rh3 {[%emt 0:07:00]} Ne6 {[%emt 0:13:43]} 18. Be1 {[%emt 0:07:07]} Bxc3 {[%emt 0:05:27]} 19. bxc3 {[%emt 0:08:37]} Qd7 {[%emt 0:06:49]} 20. g4 {[%emt 0:03:56]} fxg4 {[%emt 0:01:58]} 21. Qh7+ {[%emt 0:00:58]} Kf7 {[%emt 0:00:04]} 22. Rh5 {[%emt 0:05:34]} Ke8 {[%emt 0:12:33]} 23. f5 {[%emt 0:01:21]} Qf7 {[%emt 0:00:04]} 24. Bh4 {[%emt 0:00:38]} Nc5 {[%emt 0:07:54]} 25. Rg5 {[%emt 0:00:54]} Rg8 {[%emt 0:00:06]} 26. Rf1 {[%emt 0:01:31]} d4 {[%emt 0:07:23]} 27. e6 {[%emt 0:01:31]} Nxe6 {[%emt 0:00:03]} 28. fxe6 {[%emt 0:00:08]} Qxe6 {[%emt 0:00:01]} 29. exd4 {[%emt 0:00:45]} Qxa2 {[%emt 0:01:08]} 30. Re1+ {[%emt 0:00:50]} Kd7 {[%emt 0:00:34]} 31. Qf5+ {[%emt 0:00:10]} 1-0